fUSD/lending_fUSD_20250103
["ID","MTS","AMOUNT","RATE_DAILY","PERIOD"]
[347498170,1735878641602,-500.0,9.751e-05,2]
[347498172,1735878641611,-655.51,9.751e-05,2]
[347498174,1735878641620,-500.0,9.751e-05,2]
[347498176,1735878641630,-365.34838593,9.751e-05,2]
[347498179,1735878641644,-264.339999,9.751e-05,2]
[347498181,1735878641655,-332.0700039,9.751e-05,2]
[347498183,1735878641667,-395.472,9.751e-05,2]
[347498185,1735878641678,-2212.80961117,9.751e-05,2]
[347498187,1735878641687,-500.0,9.751e-05,2]
[347498189,1735878641696,-3452.72,9.751e-05,2]
[347498191,1735878641705,-3286.36,9.751e-05,2]
[347498193,1735878641715,-500.0,9.751e-05,2]
[347498195,1735878641725,-3290.97,9.751e-05,2]
[347498197,1735878641735,-500.0,9.751e-05,2]
[347498199,1735878641744,-2005.79,9.751e-05,2]
[347498201,1735878641752,-500.0,9.751e-05,2]
[347498203,1735878641762,-500.0,9.751e-05,2]
[347498205,1735878641771,-1454.22,9.751e-05,2]
[347498207,1735878641780,-1608.82912599,9.751e-05,2]
[347498209,1735878641792,-421.76087401,9.751e-05,2]
[347498211,1735878641802,-500.0,9.751e-05,2]
[347498213,1735878641810,-500.0,9.751e-05,2]
[347498215,1735878641819,-293.39655206,9.751e-05,2]
[347498217,1735878641828,-1534.86131449,9.751e-05,2]
[347498219,1735878641839,-1523.99716901,9.751e-05,2]
[347498223,1735878641860,-990.5815165,9.751e-05,2]
[347498225,1735878641869,-500.0,9.751e-05,2]
[347498227,1735878641878,-493.05044756,9.751e-05,2]
[347498233,1735878641927,-50.79153246,9.751e-05,2]
[347498235,1735878641936,-2647.08,9.751e-05,2]
[347498237,1735878641945,-500.0,9.751e-05,2]
[347498239,1735878641958,-575.29781593,9.751e-05,2]
[347498241,1735878641967,-1888.87908958,9.751e-05,2]
[347498243,1735878641978,-649.00581239,9.751e-05,2]
[347498245,1735878641989,-4764.15905,9.751e-05,2]
[347498248,1735878642000,-2905.38,9.751e-05,2]
[347498250,1735878642011,-499.51604803,9.751e-05,2]
[347498252,1735878642020,-9609.5,9.751e-05,2]
[347498254,1735878642029,-1227.81966733,9.751e-05,2]
[347498256,1735878642042,-345.09886395,9.751e-05,2]
[347498259,1735878642059,-305.0000025,9.751e-05,2]
[347498261,1735878642070,-1143.37146622,9.751e-05,2]
[347498263,1735878642079,-500.0,9.751e-05,2]
[347498265,1735878642089,-500.0,9.751e-05,2]
[347498267,1735878642098,-500.0,9.751e-05,2]
[347498269,1735878642107,-2322.17853378,9.751e-05,2]
[347498361,1735878643663,-649.73146622,9.751e-05,2]
[347498362,1735878643673,-2453.38,9.751e-05,2]
[347498363,1735878643684,-3807.23,9.751e-05,2]
[347498364,1735878643693,-500.0,9.751e-05,2]
[347498365,1735878643705,-500.0,9.751e-05,2]
[347498366,1735878643715,-3232.16,9.751e-05,2]
[347498367,1735878643724,-4940.89853158,9.751e-05,2]
[347498368,1735878643736,-1480.16144648,9.751e-05,2]
[347498369,1735878643823,-2187.3,9.751e-05,2]
[347498370,1735878643836,-1450.31865778,9.751e-05,2]
[347498371,1735878643849,-846.0,9.751e-05,2]
[347498372,1735878643860,-495.58079881,9.751e-05,2]
[347498373,1735878643871,-913.15698188,9.751e-05,2]
[347498374,1735878643883,-5785.60896011,9.751e-05,2]
[347498375,1735878643895,-14.11462336,9.751e-05,2]
[347498376,1735878643908,-500.0,9.751e-05,2]
[347498377,1735878643917,-500.0,9.751e-05,2]
[347498378,1735878643927,-1599.13470455,9.751e-05,2]
[347498379,1735878643940,-1099.80529545,9.751e-05,2]
[347498380,1735878643951,-500.0,9.751e-05,2]
[347498381,1735878643960,-112.06528478,9.751e-05,2]
[347498382,1735878643971,-537.35,9.751e-05,2]
[347498383,1735878643982,-1098.44735005,9.751e-05,2]
[347498384,1735878643994,-370.20736517,9.751e-05,2]
[347498385,1735878644004,-374.58391483,9.751e-05,2]
[347498388,1735878645590,-1342.35,9.75e-05,2]
[347498389,1735878645601,-196.16916241,9.75e-05,2]
[347498390,1735878645622,-2333.80083759,9.75e-05,2]
[347498391,1735878645632,-4844.74610869,9.751e-05,2]
[347498392,1735878645649,-409.73211,9.751e-05,2]
[347498393,1735878645660,-328.68581002,9.751e-05,2]
[347498394,1735878645700,-1645.95205646,9.751e-05,2]
[347498395,1735878645709,-500.0,9.751e-05,2]
[347498396,1735878645721,-4763.9,9.751e-05,2]
[347498397,1735878645731,-500.0,9.751e-05,2]
[347498398,1735878645741,-500.0,9.751e-05,2]
[347498399,1735878645751,-112.14794354,9.751e-05,2]
[347498400,1735878645763,-816.70205646,9.751e-05,2]
[347498401,1735878645772,-500.0,9.751e-05,2]
[347498402,1735878645782,-500.0,9.751e-05,2]
[347498403,1735878645792,-500.0,9.751e-05,2]
[347498404,1735878645802,-500.0,9.751e-05,2]
[347498405,1735878645811,-500.0,9.751e-05,2]
[347498406,1735878645821,-500.0,9.751e-05,2]
[347498407,1735878645830,-3265.58,9.751e-05,2]
[347498408,1735878645839,-1107.71794354,9.751e-05,2]
[347498409,1735878645851,-576.70999178,9.751e-05,2]
[347498410,1735878645862,-1104.89183922,9.751e-05,2]
[347498411,1735878645873,-367.95022546,9.751e-05,2]
[347498412,1735878645882,-625.39149197,9.751e-05,2]
[347498413,1735878645893,-2298.76,9.751e-05,2]
[347498414,1735878645905,-822.11850803,9.751e-05,2]
[347498415,1735878645915,-500.0,9.751e-05,2]
[347498416,1735878645925,-500.0,9.751e-05,2]
[347498417,1735878645935,-432.19809331,9.751e-05,2]
[347498418,1735878645944,-500.0,9.751e-05,2]
[347498419,1735878645953,-500.0,9.751e-05,2]
[347498420,1735878645962,-6479.54050296,9.751e-05,2]
[347498421,1735878645974,-2639.15949704,9.751e-05,2]
[347498422,1735878645983,-509.01,9.751e-05,2]
[347498423,1735878645992,-500.0,9.751e-05,2]
[347498424,1735878646001,-500.0,9.751e-05,2]
[347498425,1735878646010,-7911.76,9.751e-05,2]
[347498426,1735878646019,-500.0,9.751e-05,2]
[347498427,1735878646030,-500.0,9.751e-05,2]
[347498428,1735878646039,-500.0,9.751e-05,2]
[347498430,1735878646048,-6185.66,9.751e-05,2]
[347498432,1735878646058,-4128.3,9.751e-05,2]
[347498434,1735878646067,-1102.38,9.752e-05,2]
[347498436,1735878646076,-1867.47,9.752e-05,2]
[347498438,1735878646085,-500.0,9.752e-05,2]
[347498440,1735878646095,-500.0,9.752e-05,2]
[347498442,1735878646104,-500.0,9.752e-05,2]
[347498444,1735878646112,-500.0,9.752e-05,2]
[347498446,1735878646121,-500.0,9.752e-05,2]
[347498448,1735878646130,-500.0,9.752e-05,2]
[347498450,1735878646140,-500.0,9.752e-05,2]
[347498452,1735878646151,-500.0,9.752e-05,2]
[347498454,1735878646160,-500.0,9.752e-05,2]
[347498455,1735878646169,-541.76325889,9.752e-05,2]
[347498457,1735878646178,-888.0,9.752e-05,2]
[347498459,1735878646187,-552.74,9.752e-05,2]
[347498461,1735878646197,-500.0,9.752e-05,2]
[347498463,1735878646207,-1330.75724482,9.752e-05,2]
[347498466,1735878646219,-73.95275518,9.752e-05,2]
[347498468,1735878646228,-271.32607493,9.752e-05,2]
[347498471,1735878646246,-228.67392507,9.752e-05,2]
[347498473,1735878646256,-500.0,9.752e-05,2]
[347498475,1735878646265,-1240.46,9.752e-05,2]
[347498477,1735878646275,-559.18,9.752e-05,2]
[347498479,1735878646284,-1459.17,9.752e-05,2]
[347498481,1735878646293,-500.0,9.752e-05,2]
[347498483,1735878646302,-371.69607493,9.752e-05,2]
[347498485,1735878646316,-128.30392507,9.752e-05,2]
[347498487,1735878646326,-750.71,9.752e-05,2]
[347498489,1735878646335,-500.0,9.752e-05,2]
[347498491,1735878646344,-500.0,9.752e-05,2]
[347498493,1735878646353,-510.23,9.752e-05,2]
[347498495,1735878646362,-500.0,9.752e-05,2]
[347498496,1735878646371,-500.0,9.752e-05,2]
[347498498,1735878646380,-500.0,9.752e-05,2]
[347498501,1735878646390,-500.0,9.752e-05,2]
[347498502,1735878646399,-500.0,9.752e-05,2]
[347498504,1735878646408,-558.35,9.752e-05,2]
[347498506,1735878646417,-500.0,9.752e-05,2]
[347498509,1735878646427,-500.0,9.752e-05,2]
[347498510,1735878646437,-1206.67,9.752e-05,2]
[347498512,1735878646446,-204.47177194,9.752e-05,2]
[347498515,1735878646458,-1022.17822806,9.752e-05,2]
[347498517,1735878646468,-897.18,9.752e-05,2]
[347498519,1735878646478,-544.61,9.752e-05,2]
[347498521,1735878646487,-500.0,9.752e-05,2]
[347498523,1735878646496,-500.0,9.752e-05,2]
[347498525,1735878646505,-158.56187531,9.752e-05,2]
[347498527,1735878646524,-341.43812469,9.752e-05,2]
[347498529,1735878646533,-500.0,9.752e-05,2]
[347498530,1735878646543,-500.0,9.752e-05,2]
[347498532,1735878646552,-500.0,9.752e-05,2]
[347498534,1735878646562,-1648.3,9.752e-05,2]
[347498536,1735878646571,-500.0,9.752e-05,2]
[347498538,1735878646580,-500.0,9.752e-05,2]
[347498540,1735878646590,-501.68703647,9.752e-05,2]
[347498542,1735878646599,-500.0,9.752e-05,2]
[347498543,1735878646608,-713.57,9.752e-05,2]
[347498544,1735878646618,-500.0,9.752e-05,2]
[347498545,1735878646627,-500.0,9.752e-05,2]
[347498546,1735878646639,-789.57,9.752e-05,2]
[347498547,1735878646650,-500.0,9.752e-05,2]
[347498548,1735878646659,-500.0,9.752e-05,2]
[347498549,1735878646669,-500.0,9.752e-05,2]
[347498550,1735878646679,-500.0,9.752e-05,2]
[347498551,1735878646690,-1002.64,9.752e-05,2]
[347498552,1735878646699,-500.0,9.752e-05,2]
[347498553,1735878646709,-807.85,9.752e-05,2]
[347498554,1735878646719,-500.0,9.752e-05,2]
[347498555,1735878646728,-500.0,9.752e-05,2]
[347498556,1735878646738,-500.0,9.752e-05,2]
[347498557,1735878646749,-500.0,9.752e-05,2]
[347498558,1735878646758,-500.0,9.752e-05,2]
[347498559,1735878646767,-500.0,9.752e-05,2]
[347498561,1735878646776,-500.0,9.752e-05,2]
[347498563,1735878646785,-500.0,9.752e-05,2]
[347498565,1735878646794,-1722.12,9.752e-05,2]
[347498567,1735878646803,-567.51,9.752e-05,2]
[347498569,1735878646812,-500.0,9.752e-05,2]
[347498571,1735878646822,-507.38,9.752e-05,2]
[347498572,1735878646831,-500.7360057,9.752e-05,2]
[347498574,1735878646841,-500.0,9.752e-05,2]
[347498576,1735878646850,-500.0,9.752e-05,2]
[347498579,1735878646860,-500.0,9.752e-05,2]
[347498580,1735878646870,-500.0,9.752e-05,2]
[347498582,1735878646879,-504.41,9.752e-05,2]
[347498584,1735878646888,-500.0,9.752e-05,2]
[347498586,1735878646897,-500.0,9.752e-05,2]
[347498588,1735878646905,-500.0,9.752e-05,2]
[347498590,1735878646915,-500.0,9.752e-05,2]
[347498592,1735878646925,-500.0,9.752e-05,2]
[347498594,1735878646934,-500.0,9.752e-05,2]
[347498596,1735878646946,-662.99,9.752e-05,2]
[347498598,1735878646955,-500.0,9.752e-05,2]
[347498600,1735878646964,-578.34,9.752e-05,2]
[347498602,1735878646974,-522.68,9.752e-05,2]
[347498604,1735878646984,-500.0,9.752e-05,2]
[347498606,1735878646993,-1650.6,9.752e-05,2]
[347498609,1735878647003,-500.0,9.752e-05,2]
[347498610,1735878647011,-515.72,9.752e-05,2]
[347498612,1735878647022,-500.0,9.752e-05,2]
[347498615,1735878647031,-500.0,9.752e-05,2]
[347498617,1735878647042,-500.0,9.752e-05,2]
[347498618,1735878647051,-500.0,9.752e-05,2]
[347498620,1735878647061,-500.0,9.752e-05,2]
[347498623,1735878647071,-599.63,9.752e-05,2]
[347498625,1735878647080,-500.0,9.752e-05,2]
[347498627,1735878647090,-871.52,9.752e-05,2]
[347498628,1735878647099,-697.64,9.752e-05,2]
[347498631,1735878647110,-500.0,9.752e-05,2]
[347498632,1735878647118,-500.0,9.752e-05,2]
[347498634,1735878647128,-500.0,9.752e-05,2]
[347498636,1735878647140,-500.0,9.752e-05,2]
[347498639,1735878647153,-500.0,9.752e-05,2]
[347498641,1735878647167,-500.0,9.752e-05,2]
[347498642,1735878647179,-500.0,9.752e-05,2]
[347498644,1735878647191,-713.8,9.752e-05,2]
[347498646,1735878647203,-500.0,9.752e-05,2]
[347498648,1735878647212,-500.0,9.752e-05,2]
[347498650,1735878647221,-500.0,9.752e-05,2]
[347498652,1735878647231,-500.0,9.752e-05,2]
[347498654,1735878647239,-1010.51,9.752e-05,2]
[347498656,1735878647248,-500.0,9.752e-05,2]
[347498658,1735878647257,-1272.18,9.752e-05,2]
[347498660,1735878647267,-501.00231567,9.752e-05,2]
[347498662,1735878647276,-500.0,9.752e-05,2]
[347498664,1735878647285,-500.0,9.752e-05,2]
[347498666,1735878647295,-864.45,9.752e-05,2]
[347498668,1735878647304,-500.0,9.752e-05,2]
[347498670,1735878647313,-985.07,9.752e-05,2]
[347498672,1735878647322,-500.0,9.752e-05,2]
[347498674,1735878647331,-500.0,9.752e-05,2]
[347498676,1735878647340,-1649.75,9.752e-05,2]
[347498678,1735878647349,-500.0,9.752e-05,2]
[347498680,1735878647358,-157.118635,9.752e-05,2]
[347498682,1735878647367,-500.0,9.752e-05,2]
[347498684,1735878647377,-4083.41,9.752e-05,2]
[347498685,1735878647386,-500.0,9.752e-05,2]
[347498687,1735878647395,-502.91,9.752e-05,2]
[347498688,1735878647404,-865.43,9.752e-05,2]
[347498689,1735878647413,-658.87,9.752e-05,2]
[347498690,1735878647425,-500.0,9.752e-05,2]
[347498691,1735878647434,-1949.91,9.752e-05,2]
[347498692,1735878647443,-3349.8,9.752e-05,2]
[347498693,1735878647452,-500.0,9.752e-05,2]
[347498694,1735878647462,-500.0,9.752e-05,2]
[347498695,1735878647471,-500.0,9.752e-05,2]
[347498696,1735878647480,-500.0,9.752e-05,2]
[347498697,1735878647489,-533.77,9.752e-05,2]
[347498698,1735878647499,-2192.56,9.752e-05,2]
[347498699,1735878647508,-500.0,9.752e-05,2]
[347498700,1735878647767,-500.0,9.752e-05,2]
[347498701,1735878647777,-755.38,9.752e-05,2]
[347498702,1735878647787,-500.0,9.752e-05,2]
[347498703,1735878647797,-500.0,9.752e-05,2]
[347498704,1735878647806,-1143.78,9.752e-05,2]
[347498705,1735878647814,-500.0,9.752e-05,2]
[347498706,1735878647823,-500.0,9.752e-05,2]
[347498707,1735878647832,-2094.39,9.752e-05,2]
[347498708,1735878647841,-500.0,9.752e-05,2]
[347498709,1735878647851,-500.0,9.752e-05,2]
[347498710,1735878647861,-500.0,9.752e-05,2]
[347498711,1735878647871,-500.0,9.752e-05,2]
[347498712,1735878647880,-500.0,9.752e-05,2]
[347498713,1735878647889,-500.0,9.752e-05,2]
[347498714,1735878647897,-2910.74,9.752e-05,2]
[347498715,1735878647906,-1051.23,9.752e-05,2]
[347498716,1735878647915,-1068.22,9.752e-05,2]
[347498717,1735878647923,-500.0,9.752e-05,2]
[347498718,1735878647932,-880.28,9.752e-05,2]
[347498719,1735878647941,-2061.41,9.752e-05,2]
[347498720,1735878647950,-500.0,9.752e-05,2]
[347498721,1735878647959,-500.0,9.752e-05,2]
[347498722,1735878647968,-500.0,9.752e-05,2]
[347498723,1735878647977,-500.0,9.752e-05,2]
[347498724,1735878647986,-500.0,9.752e-05,2]
[347498725,1735878647995,-500.0,9.752e-05,2]
[347498726,1735878648004,-500.0,9.752e-05,2]
[347498727,1735878648013,-500.0,9.752e-05,2]
[347498728,1735878648022,-500.0,9.752e-05,2]
[347498729,1735878648031,-500.0,9.752e-05,2]
[347498730,1735878648042,-500.0,9.752e-05,2]
[347498731,1735878648052,-500.0,9.752e-05,2]
[347498732,1735878648063,-500.0,9.752e-05,2]
[347498733,1735878648072,-1183.87,9.752e-05,2]
[347498734,1735878648081,-500.0,9.752e-05,2]
[347498735,1735878648091,-500.0,9.752e-05,2]
[347498736,1735878648099,-1126.57,9.752e-05,2]
[347498737,1735878648108,-660.56,9.752e-05,2]
[347498738,1735878648117,-3455.27,9.752e-05,2]
[347498739,1735878648127,-500.0,9.752e-05,2]
[347498740,1735878648136,-500.0,9.752e-05,2]
[347498741,1735878648145,-500.0,9.752e-05,2]
[347498742,1735878648153,-1310.3,9.752e-05,2]
[347498743,1735878648162,-714.18,9.752e-05,2]
[347498744,1735878648171,-500.0,9.752e-05,2]
[347498745,1735878648181,-500.0,9.752e-05,2]
[347498746,1735878648190,-1063.89,9.752e-05,2]
[347498747,1735878648198,-1733.37,9.752e-05,2]
[347498748,1735878648207,-2552.13,9.752e-05,2]
[347498749,1735878648216,-500.0,9.752e-05,2]
[347498750,1735878648225,-645.67,9.752e-05,2]
[347498751,1735878648234,-500.0,9.752e-05,2]
[347498752,1735878648243,-500.0,9.752e-05,2]
[347498753,1735878648252,-501.04401368,9.752e-05,2]
[347498754,1735878648261,-500.0,9.752e-05,2]
[347498755,1735878648271,-2037.52,9.752e-05,2]
[347498756,1735878648279,-500.0,9.752e-05,2]
[347498757,1735878648290,-973.36,9.752e-05,2]
[347498758,1735878648300,-500.0,9.752e-05,2]
[347498759,1735878648310,-1084.06,9.752e-05,2]
[347498760,1735878648319,-2595.82,9.752e-05,2]
[347498761,1735878648328,-541.69,9.752e-05,2]
[347498762,1735878648337,-3099.16,9.752e-05,2]
[347498763,1735878648346,-500.0,9.752e-05,2]
[347498764,1735878648355,-2525.27,9.752e-05,2]
[347498765,1735878648364,-500.0,9.752e-05,2]
[347498766,1735878648374,-500.0,9.752e-05,2]
[347498767,1735878648384,-500.0,9.752e-05,2]
[347498768,1735878648393,-500.0,9.752e-05,2]
[347498769,1735878648403,-897.4,9.752e-05,2]
[347498770,1735878648412,-500.0,9.752e-05,2]
[347498771,1735878648422,-500.0,9.752e-05,2]
[347498772,1735878648432,-500.0,9.752e-05,2]
[347498773,1735878648441,-1583.92,9.752e-05,2]
[347498774,1735878648451,-1094.83,9.752e-05,2]
[347498775,1735878648460,-2215.16,9.752e-05,2]
[347498776,1735878648470,-500.0,9.752e-05,2]
[347498777,1735878648479,-500.0,9.752e-05,2]
[347498778,1735878648489,-500.0,9.752e-05,2]
[347498779,1735878648498,-500.0,9.752e-05,2]
[347498780,1735878648508,-500.0,9.752e-05,2]
[347498781,1735878648517,-1943.78,9.752e-05,2]
[347498782,1735878648527,-500.0,9.752e-05,2]
[347498783,1735878648536,-607.74,9.752e-05,2]
[347498784,1735878648546,-1377.57,9.752e-05,2]
[347498785,1735878648556,-500.0,9.752e-05,2]
[347498786,1735878648566,-2269.46,9.752e-05,2]
[347498787,1735878648575,-500.0,9.752e-05,2]
[347498788,1735878648585,-500.0,9.752e-05,2]
[347498789,1735878648594,-500.0,9.752e-05,2]
[347498790,1735878648603,-977.6,9.752e-05,2]
[347498791,1735878648612,-500.0,9.752e-05,2]
[347498792,1735878648622,-2935.99,9.752e-05,2]
[347498793,1735878648631,-500.0,9.752e-05,2]
[347498794,1735878648644,-500.0,9.752e-05,2]
[347498795,1735878648653,-500.0,9.752e-05,2]
[347498796,1735878648662,-500.0,9.752e-05,2]
[347498797,1735878648671,-500.0,9.752e-05,2]
[347498798,1735878648681,-1061.51,9.752e-05,2]
[347498799,1735878648690,-500.0,9.752e-05,2]
[347498800,1735878648700,-621.14,9.752e-05,2]
[347498801,1735878648711,-2320.18,9.752e-05,2]
[347498802,1735878648721,-500.0,9.752e-05,2]
[347498803,1735878648730,-1052.72,9.752e-05,2]
[347498804,1735878648740,-500.0,9.752e-05,2]
[347498805,1735878648749,-500.0,9.752e-05,2]
[347498806,1735878648759,-500.0,9.752e-05,2]
[347498807,1735878648768,-500.0,9.752e-05,2]
[347498808,1735878648777,-500.0,9.752e-05,2]
[347498809,1735878648787,-1616.91,9.752e-05,2]
[347498810,1735878648797,-662.03,9.752e-05,2]
[347498811,1735878648806,-1250.62,9.752e-05,2]
[347498812,1735878648816,-1571.96,9.752e-05,2]
[347498813,1735878648825,-500.0,9.752e-05,2]
[347498814,1735878648835,-931.57,9.752e-05,2]
[347498815,1735878648844,-3028.19,9.752e-05,2]
[347498816,1735878648853,-500.0,9.752e-05,2]
[347498817,1735878648863,-1766.75,9.752e-05,2]
[347498818,1735878648872,-1210.27,9.752e-05,2]
[347498819,1735878648882,-624.94,9.752e-05,2]
[347498820,1735878648892,-500.0,9.752e-05,2]
[347498821,1735878648902,-841.6,9.752e-05,2]
[347498822,1735878648911,-500.0,9.752e-05,2]
[347498823,1735878648920,-500.0,9.752e-05,2]
[347498824,1735878648933,-500.0,9.752e-05,2]
[347498825,1735878648946,-459.75714296,9.752e-05,2]
[347498826,1735878648966,-40.24285704,9.752e-05,2]
[347498827,1735878648977,-2313.79,9.752e-05,2]
[347498828,1735878648986,-1754.24,9.752e-05,2]
[347498829,1735878648997,-500.0,9.752e-05,2]
[347498830,1735878649006,-1120.59,9.752e-05,2]
[347498831,1735878649016,-500.0,9.752e-05,2]
[347498832,1735878649025,-500.0,9.752e-05,2]
[347498833,1735878649034,-500.0,9.752e-05,2]
[347498834,1735878649044,-500.0,9.752e-05,2]
[347498835,1735878649054,-500.0,9.752e-05,2]
[347498836,1735878649063,-1696.21,9.752e-05,2]
[347498837,1735878649072,-1203.54,9.752e-05,2]
[347498838,1735878649081,-500.0,9.752e-05,2]
[347498839,1735878649091,-500.0,9.752e-05,2]
[347498840,1735878649100,-500.0,9.752e-05,2]
[347498841,1735878649109,-500.0,9.752e-05,2]
[347498842,1735878649118,-1732.69,9.752e-05,2]
[347498843,1735878649127,-500.0,9.752e-05,2]
[347498844,1735878649136,-500.0,9.752e-05,2]
[347498845,1735878649145,-533.62,9.752e-05,2]
[347498846,1735878649154,-1631.62,9.752e-05,2]
[347498847,1735878649164,-500.0,9.752e-05,2]
[347498848,1735878649173,-500.0,9.752e-05,2]
[347498849,1735878649182,-600.57,9.752e-05,2]
[347498850,1735878649191,-1199.51,9.752e-05,2]
[347498851,1735878649200,-500.0,9.752e-05,2]
[347498852,1735878649209,-500.0,9.752e-05,2]
[347498853,1735878649219,-1643.21,9.752e-05,2]
[347498854,1735878649228,-500.0,9.752e-05,2]
[347498855,1735878649237,-500.0,9.752e-05,2]
[347498856,1735878649246,-569.87751083,9.752e-05,2]
[347498857,1735878649255,-500.0,9.752e-05,2]
[347498858,1735878649265,-500.0,9.752e-05,2]
[347498859,1735878649274,-500.0,9.752e-05,2]
[347498860,1735878649283,-500.0,9.752e-05,2]
[347498861,1735878649293,-500.0,9.752e-05,2]
[347498862,1735878649303,-500.0,9.752e-05,2]
[347498863,1735878649312,-500.0,9.752e-05,2]
[347498864,1735878649321,-2046.05,9.752e-05,2]
[347498865,1735878649331,-500.0,9.752e-05,2]
[347498866,1735878649341,-500.0,9.752e-05,2]
[347498867,1735878649351,-500.0,9.752e-05,2]
[347498868,1735878649360,-500.0,9.752e-05,2]
[347498869,1735878649370,-2965.0,9.752e-05,2]
[347498870,1735878649380,-556.24495048,9.752e-05,2]
[347498871,1735878649389,-500.0,9.752e-05,2]
[347498872,1735878649399,-500.0,9.752e-05,2]
[347498873,1735878649409,-618.91,9.752e-05,2]
[347498874,1735878649419,-500.0,9.752e-05,2]
[347498875,1735878649429,-500.0,9.752e-05,2]
[347498876,1735878649438,-500.0,9.752e-05,2]
[347498877,1735878649448,-1844.53,9.752e-05,2]
[347498878,1735878649457,-1044.13,9.752e-05,2]
[347498879,1735878649467,-500.0,9.752e-05,2]
[347498880,1735878649477,-500.0,9.752e-05,2]
[347498881,1735878649487,-356.44700628,9.752e-05,2]
[347498882,1735878649497,-1052.4,9.752e-05,2]
[347498883,1735878649506,-500.0,9.752e-05,2]
[347498884,1735878649516,-500.0,9.752e-05,2]
[347498885,1735878649525,-500.0,9.752e-05,2]
[347498886,1735878649535,-500.0,9.752e-05,2]
[347498887,1735878649546,-500.0,9.752e-05,2]
[347498888,1735878649556,-500.0,9.752e-05,2]
[347498889,1735878649565,-500.0,9.752e-05,2]
[347498890,1735878649575,-3374.24,9.752e-05,2]
[347498891,1735878649584,-500.0,9.752e-05,2]
[347498892,1735878649593,-500.0,9.752e-05,2]
[347498893,1735878649603,-2114.12,9.752e-05,2]
[347498894,1735878649612,-500.0,9.752e-05,2]
[347498895,1735878649622,-1983.44,9.752e-05,2]
[347498896,1735878649631,-1106.37,9.752e-05,2]
[347498897,1735878649642,-500.0,9.752e-05,2]
[347498898,1735878649651,-500.0,9.752e-05,2]
[347498899,1735878649660,-1346.38,9.752e-05,2]
[347498900,1735878649669,-500.0,9.752e-05,2]
[347498901,1735878649678,-865.02,9.752e-05,2]
[347498902,1735878649689,-500.0,9.752e-05,2]
[347498903,1735878649698,-338.93757739,9.752e-05,2]
[347498904,1735878649707,-500.0,9.752e-05,2]
[347498905,1735878649717,-1126.16,9.752e-05,2]
[347498906,1735878649726,-539.72,9.752e-05,2]
[347498907,1735878649736,-500.0,9.752e-05,2]
[347498908,1735878649745,-880.21,9.752e-05,2]
[347498909,1735878649754,-701.09,9.752e-05,2]
[347498910,1735878649765,-1751.65,9.752e-05,2]
[347498911,1735878649775,-500.0,9.752e-05,2]
[347498912,1735878649784,-500.0,9.752e-05,2]
[347498913,1735878649794,-500.0,9.752e-05,2]
[347498914,1735878649803,-2523.67,9.752e-05,2]
[347498915,1735878649812,-500.0,9.752e-05,2]
[347498916,1735878649823,-500.0,9.752e-05,2]
[347498917,1735878649832,-500.0,9.752e-05,2]
[347498918,1735878649841,-2972.18,9.752e-05,2]
[347498919,1735878649851,-715.34,9.752e-05,2]
[347498920,1735878649861,-515.45592512,9.752e-05,2]
[347498921,1735878649872,-500.0,9.752e-05,2]
[347498922,1735878649881,-500.0,9.752e-05,2]
[347498923,1735878649891,-2087.12,9.752e-05,2]
[347498924,1735878649901,-584.61,9.752e-05,2]
[347498925,1735878649910,-500.0,9.752e-05,2]
[347498926,1735878649919,-500.0,9.752e-05,2]
[347498927,1735878649928,-500.0,9.752e-05,2]
[347498928,1735878649937,-1171.84,9.752e-05,2]
[347498929,1735878649947,-500.0,9.752e-05,2]
[347498930,1735878649956,-500.0,9.752e-05,2]
[347498931,1735878649965,-1675.21,9.752e-05,2]
[347498932,1735878649974,-500.0,9.752e-05,2]
[347498933,1735878649984,-500.0,9.752e-05,2]
[347498934,1735878649994,-2069.42,9.752e-05,2]
[347498935,1735878650003,-500.0,9.752e-05,2]
[347498936,1735878650013,-675.45,9.752e-05,2]